[Event "Late-Titled-Tuesday-Blitz-April-16-2024"]
[Site "Chess.com"]
[Date "2024.04.16"]
[Round "4"]
[White "albi1999"]
[Black "GMG"]
[Result "0-1"]
[WhiteElo "2674"]
[BlackElo "2828"]
[TimeControl "180+1"]
[EndTime "14:35:42 PDT"]
[Termination "GMG won by resignation"]

1. d4 {[%clk 0:03:00.9]} 1... f5 {[%clk 0:02:58.1]} 2. e4 {[%clk 0:02:59]} 2...
fxe4 {[%clk 0:02:58.1]} 3. Nc3 {[%clk 0:02:59.6]} 3... Nf6 {[%clk 0:02:57.9]} 4.
Bg5 {[%clk 0:02:59.6]} 4... Nc6 {[%clk 0:02:56.6]} 5. d5 {[%clk 0:02:58.1]} 5...
Ne5 {[%clk 0:02:57]} 6. Qe2 {[%clk 0:02:56]} 6... c6 {[%clk 0:02:56.7]} 7. O-O-O
{[%clk 0:02:56]} 7... Nf7 {[%clk 0:02:24.6]} 8. Bxf6 {[%clk 0:02:49.8]} 8...
gxf6 {[%clk 0:02:25.5]} 9. Nxe4 {[%clk 0:02:42.3]} 9... Bh6+ {[%clk 0:01:51.4]}
10. Kb1 {[%clk 0:02:40.3]} 10... O-O {[%clk 0:01:51]} 11. Qh5 {[%clk 0:02:29.3]}
11... cxd5 {[%clk 0:01:46.2]} 12. Rxd5 {[%clk 0:02:27.2]} 12... e6 {[%clk
0:01:45.3]} 13. Rd1 {[%clk 0:02:20.6]} 13... d5 {[%clk 0:01:27.8]} 14. Ng3
{[%clk 0:02:12.5]} 14... f5 {[%clk 0:01:25.1]} 15. Nf3 {[%clk 0:02:08.4]} 15...
Qf6 {[%clk 0:01:24.2]} 16. Bd3 {[%clk 0:02:01.6]} 16... Bg7 {[%clk 0:01:24.3]}
17. c3 {[%clk 0:02:01.8]} 17... b5 {[%clk 0:01:25]} 18. Qh4 {[%clk 0:01:43.7]}
18... Qxh4 {[%clk 0:01:16.5]} 19. Nxh4 {[%clk 0:01:44.6]} 19... Ne5 {[%clk
0:01:13]} 20. Bxb5 {[%clk 0:01:37.4]} 20... Rb8 {[%clk 0:01:12.7]} 21. Be2
{[%clk 0:01:34.7]} 21... Ng4 {[%clk 0:01:03.1]} 22. Bxg4 {[%clk 0:01:02.9]}
22... fxg4 {[%clk 0:01:04]} 23. f3 {[%clk 0:00:51.6]} 23... Bxc3 {[%clk
0:00:55.3]} 24. Kc2 {[%clk 0:00:51.8]} 24... Bf6 {[%clk 0:00:53.8]} 0-1

[Event "Late-Titled-Tuesday-Blitz-April-16-2024"]
[Site "Chess.com"]
[Date "2024.04.16"]
[Round "4"]
[White "rdarruda"]
[Black "carlsenCamacho"]
[Result "1-0"]
[WhiteElo "2542"]
[BlackElo "2296"]
[TimeControl "180+1"]
[EndTime "14:35:45 PDT"]
[Termination "rdarruda won by checkmate"]

1. Nf3 {[%clk 0:02:49.7]} 1... c6 {[%clk 0:02:56.5]} 2. d4 {[%clk 0:02:49.5]}
2... d5 {[%clk 0:02:56.8]} 3. c4 {[%clk 0:02:49.2]} 3... e6 {[%clk 0:02:56.8]}
4. e3 {[%clk 0:02:49.4]} 4... Nf6 {[%clk 0:02:54.6]} 5. Nc3 {[%clk 0:02:49.3]}
5... Bd6 {[%clk 0:02:54.7]} 6. Bd3 {[%clk 0:02:49.2]} 6... dxc4 {[%clk
0:02:50.8]} 7. Bxc4 {[%clk 0:02:48.7]} 7... b5 {[%clk 0:02:51.5]} 8. Bb3 {[%clk
0:02:48.1]} 8... a6 {[%clk 0:02:51.9]} 9. O-O {[%clk 0:02:47.7]} 9... O-O {[%clk
0:02:46.1]} 10. e4 {[%clk 0:02:47.8]} 10... Bb4 {[%clk 0:02:41.8]} 11. e5 {[%clk
0:02:46.7]} 11... Nd5 {[%clk 0:02:37.1]} 12. Ne4 {[%clk 0:02:46.6]} 12... Nd7
{[%clk 0:02:29.3]} 13. Qc2 {[%clk 0:02:45.3]} 13... Be7 {[%clk 0:02:20.6]} 14.
Qxc6 {[%clk 0:02:43.2]} 14... Ra7 {[%clk 0:02:03.1]} 15. Qc2 {[%clk 0:02:42.6]}
15... Rc7 {[%clk 0:02:03]} 16. Qe2 {[%clk 0:02:42.1]} 16... Bb7 {[%clk
0:02:02.3]} 17. Bd2 {[%clk 0:02:41.1]} 17... Rc8 {[%clk 0:01:58.3]} 18. Rac1
{[%clk 0:02:40]} 18... N7b6 {[%clk 0:01:49.7]} 19. Rxc8 {[%clk 0:02:37.7]} 19...
Qxc8 {[%clk 0:01:49.5]} 20. Rc1 {[%clk 0:02:37.6]} 20... Qa8 {[%clk 0:01:49.9]}
21. Nc5 {[%clk 0:02:34.6]} 21... Bxc5 {[%clk 0:01:40.6]} 22. Rxc5 {[%clk
0:02:31.4]} 22... Rc8 {[%clk 0:01:38.3]} 23. Rxc8+ {[%clk 0:02:24.8]} 23... Qxc8
{[%clk 0:01:37.2]} 24. Ne1 {[%clk 0:02:23.4]} 24... Nc4 {[%clk 0:01:34.2]} 25.
Bc1 {[%clk 0:02:21.1]} 25... a5 {[%clk 0:01:33.1]} 26. Bc2 {[%clk 0:02:17.9]}
26... Ne7 {[%clk 0:01:26.7]} 27. Nf3 {[%clk 0:02:13.9]} 27... Qc6 {[%clk
0:01:25.3]} 28. h3 {[%clk 0:02:07.6]} 28... a4 {[%clk 0:01:18]} 29. a3 {[%clk
0:02:06.6]} 29... g6 {[%clk 0:01:03.9]} 30. Kh2 {[%clk 0:02:04.5]} 30... Nf5
{[%clk 0:01:03.3]} 31. Bg5 {[%clk 0:01:54.1]} 31... Nxd4 {[%clk 0:01:00.9]} 32.
Qd3 {[%clk 0:01:53]} 32... Nxf3+ {[%clk 0:00:54.5]} 33. gxf3 {[%clk 0:01:53.9]}
33... Nxe5 {[%clk 0:00:50.3]} 34. Qd8+ {[%clk 0:01:53.5]} 34... Kg7 {[%clk
0:00:50.2]} 35. Qf6+ {[%clk 0:01:50.8]} 35... Kg8 {[%clk 0:00:44.1]} 36. Qd8+
{[%clk 0:01:34.2]} 36... Kg7 {[%clk 0:00:42.1]} 37. Bf6+ {[%clk 0:01:32]} 37...
Kh6 {[%clk 0:00:41.8]} 38. Qd2+ {[%clk 0:01:30.7]} 38... Kh5 {[%clk 0:00:36.6]}
39. Qg5# {[%clk 0:01:30.5]} 1-0

[Event "Late-Titled-Tuesday-Blitz-April-16-2024"]
[Site "Chess.com"]
[Date "2024.04.16"]
[Round "4"]
[White "lluiss"]
[Black "1800_strength"]
[Result "0-1"]
[WhiteElo "2117"]
[BlackElo "2721"]
[TimeControl "180+1"]
[EndTime "14:35:46 PDT"]
[Termination "1800_strength won by resignation"]

1. Nf3 {[%clk 0:03:00.9]} 1... h5 {[%clk 0:02:18.7]} 2. d4 {[%clk 0:02:52.5]}
2... h4 {[%clk 0:02:18.1]} 3. h3 {[%clk 0:02:50.1]} 3... e6 {[%clk 0:02:17.9]}
4. Bg5 {[%clk 0:02:47.2]} 4... Be7 {[%clk 0:02:17.9]} 5. Bxe7 {[%clk 0:02:46.3]}
5... Qxe7 {[%clk 0:02:18.8]} 6. e3 {[%clk 0:02:46]} 6... Qb4+ {[%clk 0:02:18.9]}
7. Nbd2 {[%clk 0:02:44.1]} 7... Qxb2 {[%clk 0:02:19.8]} 8. Rb1 {[%clk
0:02:35.2]} 8... Qa3 {[%clk 0:02:18]} 9. Nc4 {[%clk 0:02:30.8]} 9... Qe7 {[%clk
0:02:14.6]} 10. Bd3 {[%clk 0:02:29.4]} 10... b6 {[%clk 0:02:14.4]} 11. O-O
{[%clk 0:02:22.9]} 11... Bb7 {[%clk 0:02:14.5]} 12. a4 {[%clk 0:02:22.2]} 12...
d6 {[%clk 0:02:14.3]} 13. a5 {[%clk 0:02:21.6]} 13... Nd7 {[%clk 0:02:15]} 14.
axb6 {[%clk 0:02:21.1]} 14... axb6 {[%clk 0:02:15.9]} 15. Qe2 {[%clk 0:02:12.1]}
15... Ngf6 {[%clk 0:02:12.7]} 16. Ra1 {[%clk 0:02:09.9]} 16... Nd5 {[%clk
0:02:03]} 17. Rxa8+ {[%clk 0:02:07.3]} 17... Bxa8 {[%clk 0:02:03.9]} 18. Ra1
{[%clk 0:02:07.1]} 18... O-O {[%clk 0:02:04.1]} 19. Qd2 {[%clk 0:01:49.2]} 19...
e5 {[%clk 0:01:58.4]} 20. dxe5 {[%clk 0:01:46.6]} 20... dxe5 {[%clk 0:01:54]}
21. Be4 {[%clk 0:01:38]} 21... c6 {[%clk 0:01:27]} 22. Ra7 {[%clk 0:01:28.9]}
22... N5f6 {[%clk 0:01:18.3]} 23. Bf5 {[%clk 0:01:24.6]} 23... Qc5 {[%clk
0:01:02.8]} 24. Qe2 {[%clk 0:00:44]} 24... b5 {[%clk 0:01:00.8]} 25. Bxd7 {[%clk
0:00:41.8]} 25... Qxa7 {[%clk 0:01:00]} 26. Ncxe5 {[%clk 0:00:39.7]} 26... Nxd7
{[%clk 0:00:59.8]} 0-1

[Event "Late-Titled-Tuesday-Blitz-April-16-2024"]
[Site "Chess.com"]
[Date "2024.04.16"]
[Round "4"]
[White "Mikhal867"]
[Black "CaspiIsrael"]
[Result "1-0"]
[WhiteElo "2553"]
[BlackElo "2723"]
[TimeControl "180+1"]
[EndTime "14:35:54 PDT"]
[Termination "Mikhal867 won by checkmate"]

1. c4 {[%clk 0:02:47.9]} 1... f5 {[%clk 0:03:00]} 2. g3 {[%clk 0:02:44.8]} 2...
g6 {[%clk 0:02:59.8]} 3. Bg2 {[%clk 0:02:39.2]} 3... Bg7 {[%clk 0:03:00.2]} 4.
Nf3 {[%clk 0:02:38]} 4... Nf6 {[%clk 0:03:00.7]} 5. O-O {[%clk 0:02:36]} 5...
O-O {[%clk 0:03:01.2]} 6. Nc3 {[%clk 0:02:32.3]} 6... d6 {[%clk 0:03:01.2]} 7.
d4 {[%clk 0:02:29.2]} 7... Nc6 {[%clk 0:03:01]} 8. d5 {[%clk 0:02:28.3]} 8...
Na5 {[%clk 0:03:01.5]} 9. Nd2 {[%clk 0:02:21.7]} 9... c5 {[%clk 0:03:01.6]} 10.
Qc2 {[%clk 0:02:18]} 10... Bd7 {[%clk 0:03:01.6]} 11. b3 {[%clk 0:02:14.2]}
11... a6 {[%clk 0:03:01.7]} 12. Bb2 {[%clk 0:02:07.6]} 12... b5 {[%clk
0:03:02.2]} 13. Rab1 {[%clk 0:01:52.9]} 13... Rb8 {[%clk 0:03:02.6]} 14. Ba1
{[%clk 0:01:51.2]} 14... Qc7 {[%clk 0:03:00.8]} 15. Rfe1 {[%clk 0:01:48.4]}
15... Rb7 {[%clk 0:02:59.2]} 16. e4 {[%clk 0:01:48]} 16... f4 {[%clk 0:02:59.2]}
17. e5 {[%clk 0:01:44.8]} 17... Ng4 {[%clk 0:02:34.8]} 18. e6 {[%clk 0:01:37]}
18... Be8 {[%clk 0:02:30.4]} 19. Nce4 {[%clk 0:01:30.5]} 19... Bxa1 {[%clk
0:02:26.6]} 20. Rxa1 {[%clk 0:01:30]} 20... fxg3 {[%clk 0:02:25.1]} 21. fxg3
{[%clk 0:01:19]} 21... bxc4 {[%clk 0:02:25]} 22. Nxc4 {[%clk 0:01:16.8]} 22...
Nxc4 {[%clk 0:02:24.2]} 23. Qxc4 {[%clk 0:01:15.9]} 23... Ne5 {[%clk 0:01:56.2]}
24. Qc3 {[%clk 0:01:15.1]} 24... Rb4 {[%clk 0:01:52.1]} 25. Rf1 {[%clk
0:01:11.8]} 25... Rxf1+ {[%clk 0:01:46.3]} 26. Rxf1 {[%clk 0:01:10.8]} 26... Qb6
{[%clk 0:01:44.1]} 27. Kh1 {[%clk 0:01:01.2]} 27... c4 {[%clk 0:01:41.8]} 28.
Qd2 {[%clk 0:00:39.8]} 28... Kg7 {[%clk 0:01:30.9]} 29. Qf4 {[%clk 0:00:35.1]}
29... Bf7 {[%clk 0:01:21.7]} 30. exf7 {[%clk 0:00:34.1]} 30... Nxf7 {[%clk
0:01:15.4]} 31. Qxf7+ {[%clk 0:00:33.6]} 31... Kh6 {[%clk 0:01:16.3]} 32. Qf8+
{[%clk 0:00:32.5]} 32... Kh5 {[%clk 0:01:16.1]} 33. Bf3# {[%clk 0:00:30.1]} 1-0

[Event "Late-Titled-Tuesday-Blitz-April-16-2024"]
[Site "Chess.com"]
[Date "2024.04.16"]
[Round "4"]
[White "Mikhail_Bryakin"]
[Black "Hikaru"]
[Result "0-1"]
[WhiteElo "2875"]
[BlackElo "3275"]
[TimeControl "180+1"]
[EndTime "14:35:57 PDT"]
[Termination "Hikaru won by resignation"]

1. c4 {[%clk 0:03:00.9]} 1... e5 {[%clk 0:02:57.4]} 2. Nc3 {[%clk 0:03:00.1]}
2... Nc6 {[%clk 0:02:56.5]} 3. g3 {[%clk 0:02:59.9]} 3... Bc5 {[%clk 0:02:52.9]}
4. Bg2 {[%clk 0:02:59.7]} 4... a6 {[%clk 0:02:53.5]} 5. e3 {[%clk 0:02:59.8]}
5... d6 {[%clk 0:02:54]} 6. Nge2 {[%clk 0:03:00.1]} 6... Ba7 {[%clk 0:02:54.8]}
7. Nd5 {[%clk 0:02:57.7]} 7... Nce7 {[%clk 0:02:52.5]} 8. Nec3 {[%clk
0:02:55.5]} 8... c6 {[%clk 0:02:52.2]} 9. Nxe7 {[%clk 0:02:53.8]} 9... Qxe7
{[%clk 0:02:52.1]} 10. O-O {[%clk 0:02:53.8]} 10... h5 {[%clk 0:02:51.5]} 11. d4
{[%clk 0:02:51.3]} 11... h4 {[%clk 0:02:51.7]} 12. b4 {[%clk 0:02:37.5]} 12...
Nf6 {[%clk 0:02:49.4]} 13. c5 {[%clk 0:02:36.4]} 13... d5 {[%clk 0:02:47.3]} 14.
e4 {[%clk 0:02:17.2]} 14... hxg3 {[%clk 0:02:25.9]} 15. fxg3 {[%clk 0:02:09.4]}
15... Bg4 {[%clk 0:02:21.6]} 16. Qd3 {[%clk 0:01:57.8]} 16... dxe4 {[%clk
0:02:16.4]} 17. Nxe4 {[%clk 0:01:54.3]} 17... O-O-O {[%clk 0:02:16.3]} 18. Bb2
{[%clk 0:01:10.3]} 18... Bb8 {[%clk 0:01:59.6]} 19. Rae1 {[%clk 0:01:00.2]}
19... Nxe4 {[%clk 0:01:58.9]} 20. Bxe4 {[%clk 0:00:49.4]} 20... g6 {[%clk
0:01:54.5]} 21. Bg2 {[%clk 0:00:35.6]} 21... f5 {[%clk 0:01:53.8]} 22. Qe3
{[%clk 0:00:13]} 22... e4 {[%clk 0:01:49.4]} 23. d5 {[%clk 0:00:13.4]} 23...
cxd5 {[%clk 0:01:49.9]} 24. Bxh8 {[%clk 0:00:13.8]} 24... Rxh8 {[%clk
0:01:50.8]} 25. Qd4 {[%clk 0:00:13.6]} 25... Qh7 {[%clk 0:01:45.8]} 26. Re3
{[%clk 0:00:06.6]} 26... Qxh2+ {[%clk 0:01:40.9]} 27. Kf2 {[%clk 0:00:07.2]}
27... Bf3 {[%clk 0:01:41.6]} 28. Rg1 {[%clk 0:00:07]} 28... Qxg3+ {[%clk
0:01:37.4]} 29. Kf1 {[%clk 0:00:07.7]} 29... Bxg2+ {[%clk 0:01:36.5]} 30. Ke2
{[%clk 0:00:05.2]} 30... Bf3+ {[%clk 0:01:36.2]} 31. Kd2 {[%clk 0:00:05.9]}
31... Rh2+ {[%clk 0:01:35.2]} 32. Kc3 {[%clk 0:00:06.5]} 32... Qxg1 {[%clk
0:01:33.8]} 0-1

[Event "Late-Titled-Tuesday-Blitz-April-16-2024"]
[Site "Chess.com"]
[Date "2024.04.16"]
[Round "4"]
[White "Shankland"]
[Black "marcodobrikov"]
[Result "1-0"]
[WhiteElo "2890"]
[BlackElo "2587"]
[TimeControl "180+1"]
[EndTime "14:36:05 PDT"]
[Termination "Shankland won by resignation"]

1. d4 {[%clk 0:03:00.9]} 1... d5 {[%clk 0:02:53.7]} 2. c4 {[%clk 0:03:01]} 2...
c6 {[%clk 0:02:54]} 3. Nc3 {[%clk 0:03:00.2]} 3... Nf6 {[%clk 0:02:54.6]} 4. e3
{[%clk 0:03:00.8]} 4... e6 {[%clk 0:02:55.3]} 5. Nf3 {[%clk 0:02:59.7]} 5... Bd6
{[%clk 0:02:54.9]} 6. Bd3 {[%clk 0:02:58.3]} 6... Nbd7 {[%clk 0:02:55]} 7. e4
{[%clk 0:02:55.3]} 7... dxe4 {[%clk 0:02:54.1]} 8. Nxe4 {[%clk 0:02:55.5]} 8...
Nxe4 {[%clk 0:02:50.8]} 9. Bxe4 {[%clk 0:02:55.8]} 9... Nf6 {[%clk 0:02:48.3]}
10. Bc2 {[%clk 0:02:55.4]} 10... c5 {[%clk 0:02:48.3]} 11. O-O {[%clk
0:02:54.3]} 11... cxd4 {[%clk 0:02:47.3]} 12. Qxd4 {[%clk 0:02:54.1]} 12... Be7
{[%clk 0:02:42.3]} 13. Qh4 {[%clk 0:02:48.1]} 13... Qa5 {[%clk 0:02:37.6]} 14.
Bd2 {[%clk 0:02:38.8]} 14... Qh5 {[%clk 0:02:36.2]} 15. Qg3 {[%clk 0:02:33.4]}
15... O-O {[%clk 0:02:35.6]} 16. Ne5 {[%clk 0:02:30.2]} 16... Bd6 {[%clk
0:02:28.7]} 17. Bc3 {[%clk 0:02:19.6]} 17... Nd7 {[%clk 0:02:17.7]} 18. Qf3
{[%clk 0:02:09.5]} 18... Qxf3 {[%clk 0:02:15.6]} 19. Nxf3 {[%clk 0:02:10.4]}
19... Be7 {[%clk 0:02:08.8]} 20. Rfd1 {[%clk 0:02:06.4]} 20... Bf6 {[%clk
0:02:08.9]} 21. Bxf6 {[%clk 0:01:55]} 21... Nxf6 {[%clk 0:02:09.8]} 22. Ne5
{[%clk 0:01:55.4]} 22... b6 {[%clk 0:02:10.3]} 23. a4 {[%clk 0:01:54.6]} 23...
Bb7 {[%clk 0:02:07.6]} 24. a5 {[%clk 0:01:54.7]} 24... Rfd8 {[%clk 0:02:06.8]}
25. f3 {[%clk 0:01:41.4]} 25... Kf8 {[%clk 0:01:58.3]} 26. Rxd8+ {[%clk
0:01:29.6]} 26... Rxd8 {[%clk 0:01:57.6]} 27. axb6 {[%clk 0:01:30.2]} 27... axb6
{[%clk 0:01:57.8]} 28. Ra7 {[%clk 0:01:30.3]} 28... Rb8 {[%clk 0:01:57.4]} 29.
Ba4 {[%clk 0:01:29.2]} 29... Kg8 {[%clk 0:01:08.5]} 30. h4 {[%clk 0:01:19.5]}
30... Nh5 {[%clk 0:01:02.3]} 31. Nd7 {[%clk 0:01:18.5]} 31... Ra8 {[%clk
0:00:57.1]} 32. Rxb7 {[%clk 0:01:13.6]} 32... Nf4 {[%clk 0:00:58]} 33. Nxb6
{[%clk 0:01:10.4]} 33... Rd8 {[%clk 0:00:57.6]} 34. Rd7 {[%clk 0:01:08.9]} 34...
Rb8 {[%clk 0:00:57.7]} 35. c5 {[%clk 0:01:09.2]} 35... Kf8 {[%clk 0:00:55.7]}
36. b4 {[%clk 0:01:08.4]} 36... h5 {[%clk 0:00:53.5]} 37. c6 {[%clk 0:01:07]}
37... Rxb6 {[%clk 0:00:53.5]} 38. c7 {[%clk 0:01:07.4]} 1-0

[Event "Late-Titled-Tuesday-Blitz-April-16-2024"]
[Site "Chess.com"]
[Date "2024.04.16"]
[Round "4"]
[White "DonJuanEGenaro"]
[Black "prochn"]
[Result "0-1"]
[WhiteElo "1995"]
[BlackElo "2433"]
[TimeControl "180+1"]
[EndTime "14:36:10 PDT"]
[Termination "prochn won by checkmate"]

1. d4 {[%clk 0:02:56.8]} 1... d5 {[%clk 0:02:59.7]} 2. c4 {[%clk 0:02:55.6]}
2... c6 {[%clk 0:02:59.9]} 3. cxd5 {[%clk 0:02:55.6]} 3... cxd5 {[%clk
0:03:00.1]} 4. Nf3 {[%clk 0:02:56.2]} 4... Nf6 {[%clk 0:02:59.5]} 5. Nc3 {[%clk
0:02:56.8]} 5... Nc6 {[%clk 0:02:59.7]} 6. Bf4 {[%clk 0:02:57.3]} 6... a6 {[%clk
0:02:59.7]} 7. a3 {[%clk 0:02:56.3]} 7... Bf5 {[%clk 0:02:54.8]} 8. e3 {[%clk
0:02:55.9]} 8... e6 {[%clk 0:02:53.4]} 9. Be2 {[%clk 0:02:55.5]} 9... Be7 {[%clk
0:02:48.2]} 10. h3 {[%clk 0:02:53.1]} 10... O-O {[%clk 0:02:47.5]} 11. Ne5
{[%clk 0:02:52.3]} 11... Rc8 {[%clk 0:02:45.1]} 12. g4 {[%clk 0:02:51.7]} 12...
Bg6 {[%clk 0:02:42.9]} 13. h4 {[%clk 0:02:50.8]} 13... h6 {[%clk 0:01:51.9]} 14.
Nxg6 {[%clk 0:02:49.5]} 14... fxg6 {[%clk 0:01:52.8]} 15. Qc2 {[%clk 0:02:44.5]}
15... Ne4 {[%clk 0:01:48.4]} 16. Nxe4 {[%clk 0:02:41.9]} 16... dxe4 {[%clk
0:01:28.2]} 17. Qxe4 {[%clk 0:02:40]} 17... e5 {[%clk 0:01:28.6]} 18. dxe5
{[%clk 0:02:28]} 18... Qa5+ {[%clk 0:01:27.2]} 19. Kf1 {[%clk 0:02:27.7]} 19...
Rce8 {[%clk 0:00:41.6]} 20. Kg2 {[%clk 0:01:55.4]} 20... Bd8 {[%clk 0:00:18.2]}
21. Qxg6 {[%clk 0:01:45.7]} 21... Nxe5 {[%clk 0:00:13.4]} 22. Bxe5 {[%clk
0:01:45.4]} 22... Qxe5 {[%clk 0:00:12.6]} 23. Bd3 {[%clk 0:01:43.9]} 23... Rf6
{[%clk 0:00:11]} 24. Qh7+ {[%clk 0:01:41.4]} 24... Kf8 {[%clk 0:00:11.4]} 25.
Bc4 {[%clk 0:01:34.4]} 25... Rxf2+ {[%clk 0:00:09.7]} 26. Kxf2 {[%clk
0:01:31.2]} 26... Qxe3+ {[%clk 0:00:09.9]} 27. Kg2 {[%clk 0:01:28.5]} 27... Qd2+
{[%clk 0:00:09.2]} 28. Kg1 {[%clk 0:01:20.7]} 28... Bb6+ {[%clk 0:00:08.5]} 29.
Kf1 {[%clk 0:01:18.5]} 29... Qf2# {[%clk 0:00:08.7]} 0-1

[Event "Late-Titled-Tuesday-Blitz-April-16-2024"]
[Site "Chess.com"]
[Date "2024.04.16"]
[Round "4"]
[White "only_strong_moves"]
[Black "1g60-1"]
[Result "1-0"]
[WhiteElo "2676"]
[BlackElo "2440"]
[TimeControl "180+1"]
[EndTime "14:36:14 PDT"]
[Termination "only_strong_moves won by resignation"]

1. Nc3 {[%clk 0:03:00.9]} 1... e6 {[%clk 0:03:00]} 2. e4 {[%clk 0:03:00.7]} 2...
d5 {[%clk 0:03:00.3]} 3. d4 {[%clk 0:03:01.1]} 3... Bb4 {[%clk 0:02:59.1]} 4.
exd5 {[%clk 0:03:00.7]} 4... exd5 {[%clk 0:02:58.5]} 5. Bd3 {[%clk 0:03:01.4]}
5... Ne7 {[%clk 0:02:58.1]} 6. Ne2 {[%clk 0:03:01.9]} 6... Nbc6 {[%clk
0:02:58.2]} 7. O-O {[%clk 0:03:02.1]} 7... Bg4 {[%clk 0:02:58]} 8. f3 {[%clk
0:03:00.4]} 8... Bh5 {[%clk 0:02:58.5]} 9. Nf4 {[%clk 0:03:00.9]} 9... Bg6
{[%clk 0:02:55.7]} 10. Nxg6 {[%clk 0:03:01.5]} 10... hxg6 {[%clk 0:02:56.6]} 11.
Ne2 {[%clk 0:03:01.6]} 11... Bd6 {[%clk 0:02:49.3]} 12. Bf4 {[%clk 0:03:00.8]}
12... Bxf4 {[%clk 0:02:49.2]} 13. Nxf4 {[%clk 0:03:01.7]} 13... Qd6 {[%clk
0:02:49.4]} 14. g3 {[%clk 0:02:41.7]} 14... Nxd4 {[%clk 0:02:47.3]} 15. Bxg6
{[%clk 0:02:35.6]} 15... Qb6 {[%clk 0:02:32.6]} 16. Bxf7+ {[%clk 0:02:35.6]}
16... Kxf7 {[%clk 0:02:31.3]} 17. Kg2 {[%clk 0:02:36.5]} 17... Qxb2 {[%clk
0:02:17.2]} 18. Rf2 {[%clk 0:02:28.9]} 18... c6 {[%clk 0:01:57.4]} 19. Rb1
{[%clk 0:02:25.6]} 19... Qc3 {[%clk 0:01:53.6]} 20. Rd2 {[%clk 0:02:21]} 20...
Nxf3 {[%clk 0:01:43.9]} 21. Rd3 {[%clk 0:02:18.3]} 21... Rxh2+ {[%clk 0:01:44]}
22. Kxf3 {[%clk 0:02:16]} 22... Qxc2 {[%clk 0:01:25.2]} 23. Qe1 {[%clk
0:02:05.3]} 23... g5 {[%clk 0:01:01.2]} 24. Qe6+ {[%clk 0:02:04.7]} 24... Ke8
{[%clk 0:01:01.4]} 25. Rxb7 {[%clk 0:01:25.3]} 25... Rh7 {[%clk 0:00:41.6]} 26.
Re3 {[%clk 0:01:01.7]} 26... Qd1+ {[%clk 0:00:41.5]} 27. Re2 {[%clk 0:01:00.7]}
27... Qf1+ {[%clk 0:00:28.8]} 28. Kg4 {[%clk 0:01:01.1]} 28... Rh4+ {[%clk
0:00:20.6]} 29. Kxg5 {[%clk 0:01:01.6]} 1-0

[Event "Late-Titled-Tuesday-Blitz-April-16-2024"]
[Site "Chess.com"]
[Date "2024.04.16"]
[Round "4"]
[White "LyonBeast"]
[Black "temus_galaktionov"]
[Result "1-0"]
[WhiteElo "3134"]
[BlackElo "2866"]
[TimeControl "180+1"]
[EndTime "14:36:15 PDT"]
[Termination "LyonBeast won by resignation"]

1. c4 {[%clk 0:02:58.8]} 1... c6 {[%clk 0:03:00.9]} 2. Nf3 {[%clk 0:02:58.4]}
2... g6 {[%clk 0:02:56.4]} 3. d4 {[%clk 0:02:57.9]} 3... Bg7 {[%clk 0:02:57.3]}
4. e4 {[%clk 0:02:57]} 4... d6 {[%clk 0:02:57.8]} 5. Nc3 {[%clk 0:02:56.7]} 5...
Nd7 {[%clk 0:02:58.4]} 6. Be2 {[%clk 0:02:56.6]} 6... e5 {[%clk 0:02:59.1]} 7.
O-O {[%clk 0:02:55.4]} 7... Ngf6 {[%clk 0:02:59.1]} 8. Re1 {[%clk 0:02:50.6]}
8... O-O {[%clk 0:02:58.9]} 9. Be3 {[%clk 0:02:50.6]} 9... Qe7 {[%clk
0:02:58.9]} 10. d5 {[%clk 0:02:48.2]} 10... c5 {[%clk 0:02:59.1]} 11. Nd2 {[%clk
0:02:45.8]} 11... Ne8 {[%clk 0:02:59.6]} 12. a3 {[%clk 0:02:37.5]} 12... f5
{[%clk 0:02:59.6]} 13. f3 {[%clk 0:02:35.7]} 13... f4 {[%clk 0:02:59.9]} 14. Bf2
{[%clk 0:02:36.1]} 14... b6 {[%clk 0:03:00.8]} 15. b4 {[%clk 0:02:35.6]} 15...
g5 {[%clk 0:03:01.3]} 16. Qa4 {[%clk 0:02:33.9]} 16... Ndf6 {[%clk 0:02:29.3]}
17. Reb1 {[%clk 0:02:32.6]} 17... h5 {[%clk 0:02:20]} 18. bxc5 {[%clk
0:02:30.3]} 18... dxc5 {[%clk 0:02:20.9]} 19. Qd1 {[%clk 0:02:28.2]} 19... Nd6
{[%clk 0:02:06.3]} 20. a4 {[%clk 0:02:28.2]} 20... Nb7 {[%clk 0:02:05.8]} 21. a5
{[%clk 0:02:27.4]} 21... Nxa5 {[%clk 0:02:02.7]} 22. Rxa5 {[%clk 0:02:25.4]}
22... bxa5 {[%clk 0:02:03.6]} 23. Nb3 {[%clk 0:02:25.9]} 23... Nd7 {[%clk
0:02:02.7]} 24. d6 {[%clk 0:02:12.3]} 24... Qe6 {[%clk 0:01:43.8]} 25. Nxc5
{[%clk 0:01:57.8]} 25... Nxc5 {[%clk 0:01:40.8]} 26. Bxc5 {[%clk 0:01:58.7]}
26... Bd7 {[%clk 0:01:39.8]} 27. Nd5 {[%clk 0:01:59]} 27... Rab8 {[%clk
0:01:38.1]} 28. Ba3 {[%clk 0:01:49.9]} 28... g4 {[%clk 0:01:26]} 29. c5 {[%clk
0:01:49.3]} 29... Kh8 {[%clk 0:01:10.5]} 30. Rc1 {[%clk 0:01:40.6]} 30... gxf3
{[%clk 0:00:21.3]} 31. Bxf3 {[%clk 0:01:39.4]} 31... Rbc8 {[%clk 0:00:06.8]} 32.
Bxh5 {[%clk 0:01:36.1]} 32... Bf6 {[%clk 0:00:05.3]} 33. Bg6 {[%clk 0:01:28]}
33... Kg7 {[%clk 0:00:04.4]} 34. Bf5 {[%clk 0:01:28.3]} 34... Qf7 {[%clk
0:00:04.2]} 35. Qg4+ {[%clk 0:01:28.8]} 35... Kh8 {[%clk 0:00:04.1]} 36. Bxd7
{[%clk 0:01:29.1]} 36... Qxd7 {[%clk 0:00:05]} 37. Qxd7 {[%clk 0:01:28.9]} 1-0